fUSD/lending_fUSD_20250211
["ID","MTS","AMOUNT","RATE_DAILY","PERIOD"]
[352738915,1739283101826,-500.0,0.00012191,2]
[352738916,1739283101835,-1026.73,0.00012191,2]
[352738917,1739283101844,-500.0,0.00012191,2]
[352738918,1739283101853,-500.0,0.00012191,2]
[352738919,1739283101862,-1291.73,0.00012191,2]
[352738920,1739283101872,-500.0,0.00012191,2]
[352738921,1739283101882,-500.0,0.00012191,2]
[352738922,1739283101891,-500.0,0.00012191,2]
[352738923,1739283101901,-1006.21,0.00012191,2]
[352738924,1739283101911,-500.0,0.00012191,2]
[352738925,1739283101920,-654.08,0.00012191,2]
[352738926,1739283101930,-500.0,0.00012191,2]
[352738927,1739283101940,-500.0,0.00012191,2]
[352738928,1739283101950,-500.0,0.00012191,2]
[352738929,1739283101960,-648.91,0.00012191,2]
[352738930,1739283101970,-451.31885126,0.00012191,2]
[352738931,1739283101980,-500.0,0.00012191,2]
[352738932,1739283101990,-829.91,0.00012191,2]
[352738933,1739283102000,-1283.05,0.00012191,2]
[352738934,1739283102010,-500.0,0.00012191,2]
[352738935,1739283102020,-500.0,0.00012191,2]
[352738936,1739283102030,-627.22,0.00012191,2]
[352738937,1739283102040,-784.62,0.00012191,2]
[352738938,1739283102050,-500.0,0.00012191,2]
[352738939,1739283102060,-500.0,0.00012191,2]
[352738940,1739283102071,-500.0,0.00012191,2]
[352738941,1739283102081,-500.0,0.00012191,2]
[352738942,1739283102091,-649.01127415,0.00012191,2]
[352738943,1739283102101,-500.0,0.00012191,2]
[352738944,1739283102112,-598.27002153,0.00012191,2]
[352738945,1739283102121,-1049.93,0.00012191,2]
[352738946,1739283102131,-500.0,0.00012191,2]
[352738947,1739283102141,-656.24,0.00012191,2]
[352738948,1739283102150,-500.0,0.00012191,2]
[352738949,1739283102159,-717.49,0.00012191,2]
[352738950,1739283102169,-750.73,0.00012191,2]
[352738951,1739283102178,-899.58,0.00012191,2]
[352738952,1739283102187,-500.0,0.00012191,2]
[352738953,1739283102196,-500.0,0.00012191,2]
[352738954,1739283102207,-951.35,0.00012191,2]
[352738955,1739283102216,-500.0,0.00012191,2]
[352738956,1739283102225,-1059.29,0.00012191,2]
[352738957,1739283102235,-1079.43,0.00012191,2]
[352738958,1739283102244,-771.17,0.00012191,2]
[352738959,1739283102254,-500.0,0.00012191,2]
[352738960,1739283102263,-500.0,0.00012191,2]
[352738961,1739283102272,-621.59,0.00012191,2]
[352738962,1739283102281,-500.0,0.00012191,2]
[352738963,1739283102291,-500.0,0.00012191,2]
[352738964,1739283102300,-637.38,0.00012191,2]
[352738965,1739283102310,-772.38,0.00012191,2]
[352738966,1739283102319,-564.18,0.00012191,2]
[352738967,1739283102329,-500.0,0.00012191,2]
[352738968,1739283102339,-562.5,0.00012191,2]
[352738969,1739283102348,-726.26,0.00012191,2]
[352738970,1739283102358,-500.0,0.00012191,2]
[352738971,1739283102367,-500.0,0.00012191,2]
[352738972,1739283102377,-500.0,0.00012191,2]
[352738973,1739283102387,-500.0,0.00012191,2]
[352738974,1739283102396,-500.0,0.00012191,2]
[352738975,1739283102405,-657.71,0.00012191,2]
[352738976,1739283102416,-545.49,0.00012191,2]
[352738977,1739283102426,-947.55,0.00012191,2]
[352738978,1739283102446,-500.0,0.00012191,2]
[352738979,1739283102456,-500.0,0.00012191,2]
[352738980,1739283102466,-500.0,0.00012191,2]
[352738981,1739283102476,-500.0,0.00012191,2]
[352738982,1739283102486,-500.0,0.00012191,2]
[352738983,1739283102496,-791.02,0.00012191,2]
[352738984,1739283102505,-594.78,0.00012191,2]
[352738985,1739283102515,-899.13,0.00012191,2]
[352738986,1739283102524,-723.56,0.00012191,2]
[352738987,1739283102533,-623.3,0.00012191,2]
[352738988,1739283102543,-500.0,0.00012191,2]
[352738989,1739283102552,-602.04,0.00012191,2]
[352738990,1739283102561,-634.43,0.00012191,2]
[352738991,1739283102572,-500.0,0.00012191,2]
[352738992,1739283102582,-689.47,0.00012191,2]
[352738993,1739283102592,-500.0,0.00012191,2]
[352738994,1739283102601,-500.0,0.00012191,2]
[352738995,1739283102611,-500.0,0.00012191,2]
[352738996,1739283102621,-500.0,0.00012191,2]
[352738997,1739283102633,-500.0,0.00012191,2]
[352738998,1739283102643,-999.07,0.00012191,2]
[352738999,1739283102652,-500.0,0.00012191,2]
[352739000,1739283102662,-961.83,0.00012191,2]
[352739001,1739283102671,-932.98,0.00012191,2]
[352739002,1739283102681,-500.0,0.00012191,2]
[352739003,1739283102690,-500.0,0.00012191,2]
[352739004,1739283102700,-662.81,0.00012191,2]
[352739005,1739283102711,-541.66,0.00012191,2]
[352739006,1739283102720,-722.67,0.00012191,2]
[352739007,1739283102730,-373.27695489,0.00012191,2]
[352739008,1739283102739,-500.0,0.00012191,2]
[352739009,1739283102748,-500.0,0.00012191,2]
[352739010,1739283102758,-500.0,0.00012191,2]
[352739011,1739283102767,-500.0,0.00012191,2]
[352739012,1739283102777,-1030.45,0.00012191,2]
[352739013,1739283102786,-500.0,0.00012191,2]
[352739014,1739283102796,-835.87,0.00012191,2]
[352739015,1739283102806,-750.85,0.00012191,2]
[352739016,1739283102816,-500.0,0.00012191,2]
[352739017,1739283102827,-458.38,0.00012191,2]
[352739018,1739283102836,-500.0,0.00012191,2]
[352739019,1739283102846,-345.99394125,0.00012191,2]
[352739020,1739283102856,-500.0,0.00012191,2]
[352739021,1739283102865,-500.0,0.00012191,2]
[352739022,1739283102875,-297.99392432,0.00012191,2]
[352739023,1739283102884,-500.0,0.00012191,2]
[352739024,1739283102894,-500.0,0.00012191,2]
[352739025,1739283102904,-500.0,0.00012191,2]
[352739026,1739283102913,-500.0,0.00012191,2]
[352739027,1739283102923,-1038.04,0.00012191,2]
[352739028,1739283102932,-655.85,0.00012191,2]
[352739029,1739283102942,-500.0,0.00012191,2]
[352739030,1739283102952,-626.7,0.00012191,2]
[352739031,1739283102961,-500.0,0.00012191,2]
[352739032,1739283102970,-500.0,0.00012191,2]
[352739033,1739283102980,-581.18,0.00012191,2]
[352739034,1739283102990,-650.34,0.00012191,2]
[352739035,1739283102999,-500.0,0.00012191,2]
[352739036,1739283103009,-557.62,0.00012191,2]
[352739037,1739283103019,-1181.79,0.00012191,2]
[352739038,1739283103029,-552.27,0.00012191,2]
[352739039,1739283103039,-982.11,0.00012191,2]
[352739040,1739283103048,-637.32,0.00012191,2]
[352739041,1739283103058,-500.0,0.00012191,2]
[352739042,1739283103070,-500.0,0.00012191,2]
[352739043,1739283103079,-500.0,0.00012191,2]
[352739044,1739283103089,-621.63,0.00012191,2]
[352739045,1739283103099,-720.74,0.00012191,2]
[352739046,1739283103109,-500.0,0.00012191,2]
[352739047,1739283103119,-756.12,0.00012191,2]
[352739048,1739283103128,-540.21,0.00012191,2]
[352739049,1739283103138,-500.0,0.00012191,2]
[352739050,1739283103148,-648.43,0.00012191,2]
[352739051,1739283103158,-1099.61,0.00012191,2]
[352739052,1739283103168,-543.05,0.00012191,2]
[352739053,1739283103178,-735.96,0.00012191,2]
[352739054,1739283103188,-1136.7,0.00012191,2]
[352739055,1739283103198,-500.0,0.00012191,2]
[352739056,1739283103207,-500.0,0.00012191,2]
[352739057,1739283103217,-875.16,0.00012191,2]
[352739058,1739283103227,-580.72,0.00012191,2]
[352739059,1739283103236,-500.0,0.00012191,2]
[352739060,1739283103245,-1187.47,0.00012191,2]
[352739061,1739283103255,-1053.93,0.00012191,2]
[352739062,1739283103265,-635.88,0.00012191,2]
[352739063,1739283103275,-1017.56,0.00012191,2]
[352739064,1739283103285,-683.09,0.00012191,2]
[352739065,1739283103294,-500.0,0.00012191,2]
[352739066,1739283103304,-1174.81,0.00012191,2]
[352739067,1739283103314,-500.0,0.00012191,2]
[352739068,1739283103324,-641.21,0.00012191,2]
[352739069,1739283103334,-515.4,0.00012191,2]
[352739070,1739283103344,-811.4,0.00012191,2]
[352739071,1739283103353,-500.0,0.00012191,2]
[352739072,1739283103363,-2279.79,0.00012191,2]
[352739073,1739283103373,-500.0,0.00012191,2]
[352739074,1739283103383,-1026.36,0.00012191,2]
[352739075,1739283103392,-500.0,0.00012191,2]
[352739076,1739283103402,-544.63,0.00012191,2]
[352739077,1739283103411,-1181.86,0.00012191,2]
[352739078,1739283103420,-500.0,0.00012191,2]
[352739079,1739283103430,-678.67,0.00012191,2]
[352739080,1739283103440,-1235.55,0.00012191,2]
[352739081,1739283103449,-430.32793144,0.00012191,2]
[352739082,1739283103459,-500.0,0.00012191,2]
[352739083,1739283103469,-500.0,0.00012191,2]
[352739084,1739283103479,-2015.94,0.00012191,2]
[352739085,1739283103488,-638.72,0.00012191,2]
[352739086,1739283103498,-379.24632739,0.00012191,2]
[352739087,1739283103507,-500.0,0.00012191,2]
[352739088,1739283103517,-884.07,0.00012191,2]
[352739089,1739283103527,-1344.05,0.00012191,2]
[352739090,1739283103537,-500.0,0.00012191,2]
[352739091,1739283103547,-157.862353,0.00012191,2]
[352739092,1739283103556,-500.0,0.00012191,2]
[352739093,1739283103566,-1667.76,0.00012191,2]
[352739094,1739283103577,-500.0,0.00012191,2]
[352739095,1739283103586,-515.7,0.00012191,2]
[352739096,1739283103596,-522.2,0.00012191,2]
[352739097,1739283103605,-1113.72,0.00012191,2]
[352739098,1739283103615,-500.0,0.00012191,2]
[352739099,1739283103626,-757.59,0.00012191,2]
[352739100,1739283103637,-1179.03,0.00012191,2]
[352739101,1739283103647,-1282.85,0.00012191,2]
[352739102,1739283103656,-808.33,0.00012191,2]
[352739103,1739283103666,-1795.37,0.00012191,2]
[352739104,1739283103675,-1850.76,0.00012191,2]
[352739105,1739283103684,-603.62,0.00012191,2]
[352739106,1739283103694,-500.0,0.00012191,2]
[352739107,1739283103704,-1151.05,0.00012191,2]
[352739108,1739283103715,-1119.24,0.00012191,2]
[352739109,1739283103724,-500.0,0.00012191,2]
[352739110,1739283103734,-1347.78,0.00012191,2]
[352739111,1739283103743,-819.33,0.00012191,2]
[352739112,1739283103753,-1536.44,0.00012191,2]
[352739113,1739283103763,-892.03,0.00012191,2]
[352739114,1739283103773,-2017.38,0.00012191,2]
[352739115,1739283103782,-948.75,0.00012191,2]
[352739116,1739283103792,-526.05,0.00012191,2]
[352739117,1739283103802,-582.46,0.00012191,2]
[352739118,1739283103812,-683.75,0.00012191,2]
[352739119,1739283103822,-657.71,0.00012191,2]
[352739120,1739283103832,-2105.16,0.00012191,2]
[352739121,1739283103842,-1725.88,0.00012191,2]
[352739122,1739283103852,-500.0,0.00012191,2]
[352739123,1739283103862,-634.23,0.00012191,2]
[352739124,1739283103872,-1375.79,0.00012191,2]
[352739125,1739283103882,-582.27,0.00012191,2]
[352739126,1739283103892,-1848.33,0.00012191,2]
[352739127,1739283103904,-500.0,0.00012191,2]
[352739128,1739283103914,-853.65,0.00012191,2]
[352739129,1739283103923,-500.0,0.00012191,2]
[352739130,1739283103935,-1602.84,0.00012191,2]
[352739131,1739283103945,-1126.45,0.00012191,2]
[352739132,1739283103954,-500.0,0.00012191,2]
[352739133,1739283103964,-1623.28,0.00012191,2]
[352739134,1739283103974,-1955.0,0.00012191,2]
[352739135,1739283103984,-1095.96,0.00012191,2]
[352739136,1739283103993,-1427.46,0.00012191,2]
[352739137,1739283104003,-733.7,0.00012191,2]
[352739138,1739283104013,-500.0,0.00012191,2]
[352739139,1739283104022,-1892.51,0.00012191,2]
[352739140,1739283104032,-636.24,0.00012191,2]
[352739141,1739283104042,-1207.29,0.00012191,2]
[352739142,1739283104051,-500.0,0.00012191,2]
[352739143,1739283104061,-507.93,0.00012191,2]
[352739144,1739283104072,-1791.03,0.00012191,2]
[352739145,1739283104082,-1757.72,0.00012191,2]
[352739146,1739283104092,-1102.03,0.00012191,2]
[352739147,1739283104102,-713.64,0.00012191,2]
[352739148,1739283104111,-500.0,0.00012191,2]
[352739149,1739283104121,-4488.97,0.00012191,2]
[352739150,1739283104131,-1078.79,0.00012191,2]
[352739151,1739283104140,-1189.98,0.00012191,2]
[352739152,1739283104150,-2171.34,0.00012191,2]
[352739153,1739283104160,-2231.76,0.00012191,2]
[352739154,1739283104169,-3213.91,0.00012191,2]
[352739155,1739283104179,-1985.57,0.00012191,2]
[352739156,1739283104189,-500.0,0.00012191,2]
[352739157,1739283104199,-500.0,0.00012191,2]
[352739158,1739283104208,-2233.07,0.00012191,2]
[352739159,1739283104218,-2042.81,0.00012191,2]
[352739160,1739283104227,-1475.61,0.00012191,2]
[352739161,1739283104237,-379.68,0.00012191,2]
[352739162,1739283104247,-810.69,0.00012191,2]
[352739163,1739283104256,-2371.13,0.00012191,2]
[352739164,1739283104266,-500.0,0.00012191,2]
[352739165,1739283104276,-700.09,0.00012191,2]
[352739166,1739283104287,-1214.76,0.00012191,2]
[352739167,1739283104296,-2171.63,0.00012191,2]
[352739168,1739283104305,-2387.02,0.00012191,2]
[352739169,1739283104315,-620.08,0.00012191,2]
[352739170,1739283104326,-2340.95,0.00012191,2]
[352739171,1739283104336,-1886.51,0.00012191,2]
[352739172,1739283104346,-5444.75,0.00012191,2]
[352739173,1739283104356,-2886.17,0.00012191,2]
[352739174,1739283104366,-500.0,0.00012191,2]
[352739175,1739283104376,-727.8,0.00012191,2]
[352739176,1739283104386,-707.04,0.00012191,2]
[352739177,1739283104396,-2310.94,0.00012191,2]
[352739178,1739283104406,-2343.44,0.00012191,2]
[352739179,1739283104416,-937.33,0.00012191,2]
[352739180,1739283104426,-1158.26,0.00012191,2]
[352739181,1739283104436,-500.0,0.00012191,2]
[352739182,1739283104446,-670.35,0.00012191,2]
[352739183,1739283104456,-2558.39,0.00012191,2]
[352739184,1739283104466,-500.0,0.00012191,2]
[352739185,1739283104476,-620.78,0.00012191,2]
[352739186,1739283104486,-2007.68,0.00012191,2]
[352739187,1739283104496,-2648.76,0.00012191,2]
[352739188,1739283104506,-2171.75,0.00012191,2]
[352739189,1739283104516,-2434.45,0.00012191,2]
[352739190,1739283104526,-731.57,0.00012191,2]
[352739191,1739283104536,-2583.49,0.00012191,2]
[352739192,1739283104545,-2031.5,0.00012191,2]
[352739193,1739283104555,-500.0,0.00012191,2]
[352739194,1739283104564,-3062.38,0.00012191,2]
[352739195,1739283104575,-1845.16,0.00012191,2]
[352739196,1739283104585,-3061.99,0.00012191,2]
[352739197,1739283104595,-2068.15,0.00012191,2]
[352739198,1739283104605,-1009.34,0.00012191,2]
[352739199,1739283104615,-2900.54,0.00012191,2]
[352739200,1739283104626,-2626.43,0.00012191,2]
[352739201,1739283104638,-500.0,0.00012191,2]
[352739202,1739283104648,-2213.47,0.00012191,2]
[352739203,1739283104658,-1085.29,0.00012191,2]
[352739204,1739283104669,-2309.34,0.00012191,2]
[352739205,1739283104679,-7282.99,0.00012191,2]
[352739206,1739283104689,-1952.41,0.00012191,2]
[352739207,1739283104699,-701.48,0.00012191,2]
[352739208,1739283104710,-500.0,0.00012191,2]
[352739209,1739283104720,-1931.94,0.00012191,2]
[352739210,1739283104730,-500.0,0.00012191,2]
[352739211,1739283104742,-5326.26,0.00012191,2]
[352739212,1739283104752,-500.0,0.00012191,2]
[352739213,1739283104762,-3327.15,0.00012191,2]
[352739214,1739283104772,-1259.82,0.00012191,2]
[352739215,1739283104782,-500.0,0.00012191,2]
[352739216,1739283104792,-667.96,0.00012191,2]
[352739217,1739283104802,-500.0,0.00012191,2]
[352739218,1739283104812,-3450.17,0.00012191,2]
[352739219,1739283104823,-500.0,0.00012191,2]
[352739220,1739283104834,-1704.66,0.00012191,2]
[352739221,1739283104844,-500.0,0.00012191,2]
[352739222,1739283104854,-500.0,0.00012191,2]
[352739223,1739283104864,-2127.38,0.00012191,2]
[352739224,1739283104875,-500.0,0.00012191,2]
[352739225,1739283104885,-1476.79,0.00012191,2]
[352739226,1739283104896,-1839.16,0.00012191,2]
[352739227,1739283104906,-889.84,0.00012191,2]
[352739228,1739283104916,-2565.16,0.00012191,2]
[352739229,1739283104927,-2467.78,0.00012191,2]
[352739230,1739283104937,-500.0,0.00012191,2]
[352739231,1739283104947,-1657.8,0.00012191,2]
[352739232,1739283104958,-683.49,0.00012191,2]
[352739233,1739283104969,-500.0,0.00012191,2]
[352739234,1739283104979,-1036.17,0.00012191,2]
[352739235,1739283104989,-2953.99,0.00012191,2]
[352739236,1739283105000,-500.0,0.00012191,2]
[352739237,1739283105010,-2380.39,0.00012191,2]
[352739238,1739283105021,-1433.77,0.00012191,2]
[352739239,1739283105032,-1071.62,0.00012191,2]
[352739240,1739283105042,-1274.15,0.00012191,2]
[352739241,1739283105053,-500.0,0.00012191,2]
[352739242,1739283105063,-855.01,0.00012191,2]
[352739243,1739283105075,-1027.27,0.00012191,2]
[352739244,1739283105085,-1213.71,0.00012191,2]
[352739245,1739283105095,-2875.82,0.00012191,2]
[352739246,1739283105106,-727.11,0.00012191,2]
[352739247,1739283105116,-500.0,0.00012191,2]
[352739248,1739283105127,-713.14,0.00012191,2]
[352739249,1739283105137,-2037.92,0.00012191,2]
[352739250,1739283105148,-2384.33,0.00012191,2]
[352739251,1739283105157,-1969.78,0.00012192,2]
[352739252,1739283105167,-449.9,0.00012192,2]
[352739253,1739283105178,-596.01,0.00012192,2]
[352739254,1739283105188,-164.83929545,0.00012206,2]
[352739255,1739283105197,-152.05936481,0.00012224,2]
[352739256,1739283105208,-500.0,0.00012243,2]
[352739257,1739283105219,-500.0,0.00012243,2]
[352739258,1739283105229,-500.0,0.00012243,2]
[352739259,1739283105239,-162.48382208,0.00012243,2]
[352739260,1739283105249,-161.42771254,0.00012243,2]
[352739261,1739283105260,-156.842686,0.00012243,2]
[352739262,1739283105270,-296.66,0.00012246,2]
[352739263,1739283105281,-500.0,0.00012265,2]
[352739264,1739283105291,-150.0,0.00012272,2]
[352739265,1739283105300,-251.43149006,0.00012274,2]
[352739266,1739283105311,-524.64,0.00012321,2]
[352739267,1739283105324,-1114.15,0.00012322,2]
[352739268,1739283105334,-1907.79,0.00012322,2]
[352739269,1739283105345,-500.0,0.00012322,2]
[352739270,1739283105356,-2042.7,0.00012322,2]
[352739271,1739283105366,-2608.79,0.00012322,2]
[352739272,1739283105376,-151.0,0.00012322,2]
[352739273,1739283105386,-500.0,0.00012328,2]
[352739274,1739283105396,-594.5403681,0.00012328,2]
[352739275,1739283105407,-242.9008724,0.00012328,2]
[352739276,1739283105417,-500.0,0.00012328,2]
[352739277,1739283105427,-500.0,0.00012328,2]
[352739278,1739283105437,-545.31,0.00012328,2]
[352739279,1739283105447,-500.0,0.00012328,2]
[352739280,1739283105457,-500.0,0.00012328,2]
[352739281,1739283105466,-623.89,0.00012328,2]
[352739282,1739283105476,-2289.514115,0.00012328,2]
[352739283,1739283105486,-912.071354,0.00012328,2]
[352739284,1739283105496,-562.39,0.00012328,2]
[352739285,1739283105506,-1335.42,0.00012328,2]
[352739286,1739283105516,-500.0,0.00012328,2]
[352739287,1739283105526,-500.0,0.00012328,2]
[352739288,1739283105537,-500.0,0.00012328,2]
[352739289,1739283105547,-500.0,0.00012328,2]
[352739290,1739283105557,-500.0,0.00012328,2]
[352739291,1739283105567,-1026.73,0.00012328,2]
[352739292,1739283105579,-500.0,0.00012328,2]
[352739293,1739283105589,-1291.73,0.00012328,2]
[352739294,1739283105600,-500.0,0.00012328,2]
[352739295,1739283105611,-500.0,0.00012328,2]
[352739296,1739283105622,-398.9,0.00012328,2]
[352739297,1739283105636,-1006.21,0.00012328,2]
[352739298,1739283105646,-500.0,0.00012328,2]
[352739299,1739283105656,-654.08,0.00012328,2]
[352739300,1739283105666,-500.0,0.00012328,2]
[352739301,1739283105680,-500.0,0.00012328,2]
[352739302,1739283105690,-500.0,0.00012328,2]
[352739303,1739283105701,-648.91,0.00012328,2]
[352739304,1739283105712,-565.97117003,0.00012328,2]
[352739305,1739283105723,-829.91,0.00012328,2]
[352739306,1739283105734,-1283.05,0.00012328,2]
[352739307,1739283105745,-500.0,0.00012328,2]
[352739308,1739283105978,-627.22,0.00012328,2]
[352739309,1739283105989,-784.62,0.00012328,2]
[352739310,1739283105999,-403.84800033,0.00012328,2]
[352739311,1739283106010,-500.0,0.00012328,2]
[352739312,1739283106020,-289.53,0.00012328,2]
[352739313,1739283106030,-500.0,0.00012328,2]
[352739314,1739283106040,-500.0,0.00012328,2]
[352739315,1739283106050,-1049.93,0.00012328,2]
[352739316,1739283106060,-500.0,0.00012328,2]
[352739317,1739283106070,-656.24,0.00012328,2]
[352739318,1739283106081,-500.0,0.00012328,2]
[352739319,1739283106091,-717.49,0.00012328,2]
[352739320,1739283106101,-750.73,0.00012328,2]
[352739321,1739283106110,-899.58,0.00012328,2]
[352739322,1739283106120,-377.01,0.00012328,2]
[352739323,1739283106130,-500.0,0.00012328,2]
[352739324,1739283106139,-951.35,0.00012328,2]
[352739325,1739283106150,-500.0,0.00012328,2]
[352739326,1739283106159,-1059.29,0.00012328,2]
[352739327,1739283106169,-1079.43,0.00012328,2]
[352739328,1739283106180,-771.17,0.00012328,2]
[352739329,1739283106190,-500.0,0.00012328,2]
[352739330,1739283106201,-500.0,0.00012328,2]
[352739331,1739283106211,-621.59,0.00012328,2]
[352739332,1739283106221,-500.0,0.00012328,2]
[352739333,1739283106231,-500.0,0.00012328,2]
[352739334,1739283106242,-772.38,0.00012328,2]
[352739335,1739283106253,-637.38,0.00012328,2]
[352739336,1739283106263,-564.18,0.00012328,2]
[352739337,1739283106274,-500.0,0.00012328,2]
[352739338,1739283106284,-562.5,0.00012328,2]
[352739339,1739283106295,-726.26,0.00012328,2]
[352739340,1739283106305,-500.0,0.00012328,2]
[352739341,1739283106315,-500.0,0.00012328,2]
[352739342,1739283106326,-500.0,0.00012328,2]
[352739343,1739283106337,-500.0,0.00012328,2]
[352739344,1739283106347,-500.0,0.00012328,2]
[352739345,1739283106358,-657.71,0.00012328,2]
[352739346,1739283106367,-545.49,0.00012328,2]
[352739347,1739283106377,-947.55,0.00012328,2]
[352739348,1739283106387,-500.0,0.00012328,2]
[352739349,1739283106397,-500.0,0.00012328,2]
[352739350,1739283106406,-500.0,0.00012328,2]
[352739351,1739283106416,-500.0,0.00012328,2]
[352739352,1739283106426,-500.0,0.00012328,2]
[352739353,1739283106436,-791.02,0.00012328,2]
[352739354,1739283106446,-594.78,0.00012328,2]
[352739355,1739283106457,-899.13,0.00012328,2]
[352739356,1739283106467,-723.56,0.00012328,2]
[352739357,1739283106477,-623.3,0.00012328,2]
[352739358,1739283106487,-500.0,0.00012328,2]
[352739359,1739283106497,-602.04,0.00012328,2]
[352739360,1739283106506,-634.43,0.00012328,2]
[352739361,1739283106516,-500.0,0.00012328,2]
[352739362,1739283106526,-689.47,0.00012328,2]
[352739363,1739283106536,-500.0,0.00012328,2]
[352739364,1739283106546,-500.0,0.00012328,2]
[352739365,1739283106556,-500.0,0.00012328,2]
[352739366,1739283106566,-500.0,0.00012328,2]
[352739367,1739283106579,-500.0,0.00012328,2]
[352739368,1739283106589,-999.07,0.00012328,2]
[352739369,1739283106599,-2000.0,0.00012328,2]
[352739370,1739283106610,-500.0,0.00012328,2]
[352739371,1739283106620,-961.83,0.00012328,2]
[352739372,1739283106633,-932.98,0.00012328,2]
[352739373,1739283106642,-500.0,0.00012328,2]
[352739374,1739283106651,-500.0,0.00012328,2]
[352739375,1739283106663,-662.81,0.00012328,2]
[352739376,1739283106673,-541.66,0.00012328,2]
[352739377,1739283106682,-722.67,0.00012328,2]
[352739378,1739283106692,-500.0,0.00012328,2]
[352739379,1739283106701,-500.0,0.00012328,2]
[352739380,1739283106713,-500.0,0.00012328,2]
[352739381,1739283106723,-500.0,0.00012328,2]
[352739382,1739283106732,-1030.45,0.00012328,2]
[352739383,1739283106742,-559.31221049,0.00012328,2]
[352739384,1739283106752,-835.87,0.00012328,2]
[352739385,1739283106762,-750.85,0.00012328,2]
[352739386,1739283106772,-500.0,0.00012328,2]
[352739387,1739283106781,-386.98310744,0.00012328,2]
[352739388,1739283106791,-500.0,0.00012328,2]
[352739389,1739283106801,-500.0,0.00012328,2]
[352739390,1739283106811,-500.0,0.00012328,2]
[352739391,1739283106821,-500.0,0.00012328,2]
[352739392,1739283106832,-500.0,0.00012328,2]
[352739393,1739283106843,-500.0,0.00012328,2]
[352739394,1739283106853,-1038.04,0.00012328,2]
[352739395,1739283106863,-655.85,0.00012328,2]
[352739396,1739283106873,-500.0,0.00012328,2]
[352739397,1739283106883,-626.7,0.00012328,2]
[352739398,1739283106893,-500.0,0.00012328,2]
[352739399,1739283106902,-500.0,0.00012328,2]
[352739400,1739283106913,-581.18,0.00012328,2]
[352739401,1739283106922,-650.34,0.00012328,2]
[352739402,1739283106932,-500.0,0.00012328,2]
[352739403,1739283106943,-557.62,0.00012328,2]
[352739404,1739283106953,-1181.79,0.00012328,2]
[352739405,1739283106963,-552.27,0.00012328,2]
[352739406,1739283106973,-982.11,0.00012328,2]
[352739407,1739283106983,-637.32,0.00012328,2]
[352739408,1739283106992,-500.0,0.00012328,2]
[352739409,1739283107002,-500.0,0.00012328,2]
[352739410,1739283107013,-500.0,0.00012328,2]
[352739411,1739283107023,-621.63,0.00012328,2]
[352739412,1739283107033,-720.74,0.00012328,2]
[352739413,1739283107043,-500.0,0.00012328,2]
[352739414,1739283107052,-756.12,0.00012328,2]